Cogmind - Beta 16.1 @@@ ROGUE MODE // 2026.01.18 @ 18:51:27 Player: JuustuToug Result: Destroyed by MF-JC1(R) with Subdweller Beam Cannon Performance ------------- Evolutions (0) 0 Regions Visited (3) 600 Robots Destroyed (25) 125 Value Destroyed (440) 440 Prototype IDs (2) 40 Alien Tech Used (0) 0 Bonus (0) 0 TOTAL SCORE: 1205 Bonus ------- None Cogmind --------- Core Integrity 0/250 Matter 229/300 Energy 114/250 System Corruption 0% Temperature Cool (9) Movement Treading (160) Location -10/Subcaves Parts ------- > --- POWER (1) -------- Ion Engine > --- PROPULSION (2) --- Light Treads Light Treads > --- UTILITY (2) ------ Large Storage Unit Seismic Detector > --- WEAPON (2) ------- Light Assault Rifle Light Assault Rifle > --- INVENTORY (15) --- Light Treads Improved Heat Sink Structural Scanner Machine Analyzer Transport Network Coupler Light Assault Rifle Light Assault Rifle Light Assault Rifle Light Assault Rifle Peak State ------------ > --- POWER ------------ Improved Ion Engine > --- PROPULSION ------- Light Treads Advanced Treads > --- UTILITY ---------- Large Storage Unit Seismic Detector > --- WEAPON ----------- Medium Laser Assault Rifle > --- INVENTORY -------- Light Treads Light Treads Light Treads Light Treads Improved Heat Sink Structural Scanner Machine Analyzer Transport Network Coupler Small Laser Light Assault Rifle Light Assault Rifle Light Assault Rifle Light Assault Rifle Light Assault Rifle Light Assault Rifle [Rating: 11] Favorites ----------- Power Light Ion Engine Engine Light Ion Engine Propulsion Light Treads Treads Light Treads Utility Seismic Detector Device Seismic Detector Storage Large Storage Unit Weapon Assault Rifle Energy Gun Medium Laser Ballistic Gun Assault Rifle Build | -11 -10 -10 -10 ------- Run | Yrd Mat Min Sub Slots Evolved . | . . . . Power . | . . . . Propulsion . | . . . . Utility . | . . . . Weapon . | . . . . Parts Attached 19 | 7 5 3 4 Power 4 | 1 1 2 . Engine 4 | 1 1 2 . Core . | . . . . Reactor . | . . . . Propulsion 5 | 2 . 1 2 Treads 5 | 2 . 1 2 Leg . | . . . . Wheel . | . . . . Hover . | . . . . Flight . | . . . . Utility 5 | 2 3 . . Device 3 | 1 2 . . Storage 2 | 1 1 . . Processor . | . . . . Hackware . | . . . . Protection . | . . . . Artifact . | . . . . Weapon 5 | 2 1 . 2 Energy Gun 1 | . 1 . . Energy Cannon . | . . . . Ballistic Gun 4 | 2 . . 2 Ballistic Cannon . | . . . . Launcher . | . . . . Special Weapon . | . . . . Impact Weapon . | . . . . Slashing Weapon . | . . . . Piercing Weapon . | . . . . Special Melee Weapon . | . . . . Unidentified Prototypes . | . . . . Parts Lost 7 | . 1 . 6 Power 1 | . . . 1 Propulsion 3 | . . . 3 Utility 1 | . 1 . . Weapon 2 | . . . 2 Highest Loss Streak 6 | . 1 . 6 To Critical Strikes . | . . . . Average Backups 9 | 1 7 12 13 Power . | . . . . Propulsion 1 | . . 2 3 Utility 1 | . . 3 4 Weapon 5 | . 4 6 5 Tool/Special . | . . . . Unused Backups 27 | . 11 2 14 Power 2 | . 1 . 1 Propulsion 5 | . 2 . 3 Utility 6 | . 1 1 4 Weapon 14 | . 7 1 6 Tool/Special . | . . . . Average Slot Usage (%) 99 | . 99 100 95 Engine 13 | . 14 14 9 Treads 28 | . 28 28 28 Device 13 | . 13 14 14 Storage 14 | . 14 14 14 Energy Gun 13 | . 13 14 7 Ballistic Gun 14 | . 14 14 20 Peak Build Rating 11 | 8 9 11 11 Average Rating 8 | 6 7 9 9 On Entrance 6 | . 8 7 11 Avg Prop Armor Cover (%) . | . . . . Naked Turns . | . . . . Heaviest Build 32 | 14 28 32 32 Greatest Support 42 | 40 40 42 42 Greatest Overweight (x) . | . . . . Average Overweight (x) . | . . . . Largest Inventory Capacity 15 | 8 15 15 15 Average Capacity 12 | 7 10 15 15 Most Carried 15 | 4 15 15 15 Average Carried 9 | 2 8 12 13 Final Capacity 15 | 8 15 15 15 Final Carried 15 | 4 9 15 9 Class Distribution -------------------- 100% | Mutant Dominant Class ---------------- Mutant | -10/Materials Mutant | -10/Mines Mutant | -10/Subcaves Resources | -11 -10 -10 -10 ----------- Run | Yrd Mat Min Sub Matter Collected 583 | 286 216 78 3 Remotely . | . . . . Salvage Created 733 | 153 403 177 . Parts 63 | 12 46 5 . Haulers Intercepted 1 | . 1 . . Recyclers Shooed . | . . . . Parts Field Recycled . | . . . . Retrieved Matter . | . . . . Parts Self-Destructed . | . . . . Prevented . | . . . . Parts Restored . | . . . . Kills | -11 -10 -10 -10 ------- Run | Yrd Mat Min Sub Combat Hostiles Destroyed 18 | . 14 4 . Guns 18 | . 14 4 . Classes Destroyed 6 | 3 3 . . Worker 2 | 2 . . . Tunneler 3 | 2 1 . . Hauler 1 | . 1 . . Recycler 1 | 1 . . . Swarmer 9 | . 9 . . Grunt 9 | . 5 4 . Best Kill Streak 4 | 3 4 2 . Combat Bots Only 4 | . 4 2 . Max Kills in Single Turn 2 | 1 2 1 . Gunslinging . | . . . . Exploded . | . . . . Melee . | . . . . Uniques/NPCs Destroyed . | . . . . Combat | -11 -10 -10 -10 -------- Run | Yrd Mat Min Sub Hostile Shots Fired 96 | . 51 16 29 Missed 22 | . 14 3 5 Hits 74 | . 37 13 24 Projectile 74 | . 37 13 24 Critical Strikes 2 | . . . 2 Damage Taken 1163 | . 330 186 647 Core 266 | . 39 34 193 Absorbed by Shields . | . . . . Core Remaining (%) 100 | 100 . . . Volleys Fired 89 | 20 38 15 16 Largest 2 | 2 2 2 2 Hottest 70 | 40 70 70 70 Shots Fired 177 | 40 76 30 31 Gun 177 | 40 76 30 31 Cannon . | . . . . Launcher . | . . . . Special . | . . . . Kinetic 119 | 40 38 15 26 Thermal 58 | . 38 15 5 Explosive . | . . . . Electromagnetic . | . . . . Robot Hit Streak 19 | 6 13 4 19 Robot Miss Streak 4 | 2 4 2 1 Penetration Max . | . . . . Secondary Targets . | . . . . Shots Hit Robots 116 | 25 42 20 29 Core Hits 43 | 8 23 9 3 Critical Kills . | . . . . Critical Parts Destroyed 1 | . 1 . . Critical Strikes 8 | . 5 3 . Burn 7 | . 4 3 . Destroy 1 | . 1 . . Melee Attacks . | . . . . Impact . | . . . . Slashing . | . . . . Piercing . | . . . . Sneak Attacks . | . . . . Combat Hostiles . | . . . . Follow-up Attacks . | . . . . Damage Inflicted 1158 | 166 548 276 168 Guns 1156 | 166 546 276 168 Cannons . | . . . . Explosions . | . . . . Melee . | . . . . Ramming 2 | . 2 . . Kinetic 716 | 166 232 150 168 Thermal 440 | . 314 126 . Explosive . | . . . . Electromagnetic . | . . . . Impact . | . . . . Slashing . | . . . . Piercing . | . . . . Highest Corruption . | . . . . Average Corruption . | . . . . Corruption Purged . | . . . . Corruption Blocked . | . . . . Overload Shots . | . . . . Overflow Damage . | . . . . Projectiles . | . . . . Explosions . | . . . . Melee . | . . . . Knockbacks . | . . . . Impact . | . . . . Kinetic . | . . . . Secondary . | . . . . Self-Inflicted Damage . | . . . . Shots . | . . . . Rammed 1 | . 1 . . Targets Rammed 1 | . 1 . . Kicked . | . . . . Crushed . | . . . . Highest Temperature 273 | . 72 177 273 Average Temperature 53 | . 26 75 156 Received Heat Transfer 920 | . 66 105 749 Siege Activations . | . . . . Martial Activations . | . . . . Shielding Activations . | . . . . Robots Disrupted . | . . . . Combat Hostiles . | . . . . Robots Corrupted . | . . . . Combat Hostiles . | . . . . Parts Fried . | . . . . Impact Corruptions . | . . . . Robots Melted . | . . . . Combat Hostiles . | . . . . Parts Melted 3 | . 2 1 . Heat Transferred 1813 | . 1221 592 . Parts Sabotaged . | . . . . Parts Stolen . | . . . . Parts Stripped . | . . . . Power Chain Reactions . | . . . . Alert | -11 -10 -10 -10 ------- Run | Yrd Mat Min Sub Maximum Alert Level . | . . . . Low Security (%) 100 | 100 100 100 . Level 1 . | . . . . Level 2 . | . . . . Level 3 . | . . . . Level 4 . | . . . . Level 5 . | . . . . High Security . | . . . . Max Security . | . . . . Peak Influence 132 | 10 132 47 . Initial 21 | . . 21 . Average 37 | 2 72 5 . Influence Increases 566 | 25 425 116 . Destroy 0b10 Robot/C 360 | . 280 80 . Destroy 0b10 Robot/NC 40 | 25 15 . . Destroy Leader 72 | . 52 20 . Allied During Kill 10 | . . 10 . Successful Hack 22 | . 16 6 . Destroy Structure 2 | . 2 . . Lose Combat Pursuer 60 | . 60 . . Influence Decreases 566 | 25 370 171 . Entered New Map 34 | . . 34 . Time Decay 522 | 25 360 137 . Lost Part 10 | . 10 . . Squads Dispatched 5 | . 4 1 . Investigation 2 | . 1 1 . Extermination . | . . . . Reinforcement 3 | . 3 . . Assault . | . . . . Garrison . | . . . . Intercept . | . . . . Searches Triggered . | . . . . Construction Impeded . | . . . . Haulers Reinforced . | . . . . Active Scanning Responses . | . . . . Cargo Convoy Interrupts . | . . . . Stealth | -11 -10 -10 -10 --------- Run | Yrd Mat Min Sub Distress Signals . | . . . . Communications Jammed . | . . . . Distress Signals . | . . . . Times Spotted 32 | . 24 5 3 Peak Tracking Total 5 | . 5 2 2 Tactical Retreats 3 | . 3 . . Traps | -11 -10 -10 -10 ------- Run | Yrd Mat Min Sub Traps Triggered 1 | . 1 . . Indirectly . | . . . . Trap Hack Attempts . | . . . . Triggered . | . . . . Disarmed . | . . . . Reprogrammed . | . . . . Reused . | . . . . Traps Extracted . | . . . . Installed . | . . . . Triggered . | . . . . Machines | -11 -10 -10 -10 ---------- Run | Yrd Mat Min Sub Machines Disabled . | . . . . Max in Single Turn . | . . . . Machines Repaired . | . . . . Machines Dismantled . | . . . . Machines Sabotaged . | . . . . Overloaded Fab Kills . | . . . . Hacking | -11 -10 -10 -10 --------- Run | Yrd Mat Min Sub Machines Accessed 5 | . 3 2 . Terminals 4 | . 3 1 . Fabricators . | . . . . Repair Stations . | . . . . Recycling Units . | . . . . Scanalyzers . | . . . . Garrison Access . | . . . . Total Hacks 19 | . 15 4 . Successful 9 | . 7 2 . Failed 10 | . 8 2 . Catastrophic . | . . . . Database Lockouts . | . . . . Manual 18 | . 15 3 . Terminals 18 | . 15 3 . Fabricators . | . . . . Repair Stations . | . . . . Recycling Units . | . . . . Scanalyzers . | . . . . Garrison Access . | . . . . Terminal Hacks 5 | . 3 2 . Part Schematic 1 | . 1 . . Prototype ID Bank 1 | . . 1 . Open Door 1 | . . 1 . Terminal Index 1 | . 1 . . Locate Traps 1 | . 1 . . Fabricator Hacks . | . . . . Repair Station Hacks . | . . . . Recycling Unit Hacks . | . . . . Scanalyzer . | . . . . Garrison Access Hacks . | . . . . Unauthorized Hacks 4 | . 4 . . Terminals 4 | . 4 . . Botnet 1 | . 1 . . Operators 1 | . 1 . . Skim 2 | . 2 . . Fabricators . | . . . . Repair Stations . | . . . . Recycling Units . | . . . . Scanalyzers . | . . . . Garrison Access . | . . . . Data Cores Recovered . | . . . . Used . | . . . . Hacking Detections 4 | . 3 1 . Full Trace Events . | . . . . Feedback Events . | . . . . Feedback Blocked . | . . . . Robot Schematics Acquired . | . . . . Robots Built . | . . . . Authchips . | . . . . Time . | . . . . Total Robot Build Rating . | . . . . Part Schematics Acquired 1 | . 1 . . Parts Built . | . . . . Authchips . | . . . . Time . | . . . . Total Part Build Rating . | . . . . Part Studies Acquired . | . . . . Parts Repaired . | . . . . Time . | . . . . Parts Recycled . | . . . . Recycled Matter . | . . . . Retrieved Matter . | . . . . Retrieved Components . | . . . . Parts Scanalyzed . | . . . . Part Schematics Acquired . | . . . . Parts Damaged . | . . . . Bothacking | -11 -10 -10 -10 ------------ Run | Yrd Mat Min Sub Used RIF Installer . | . . . . Robots Hacked . | . . . . Non-combat . | . . . . Combat . | . . . . Robot Hacks Applied . | . . . . Relay Couplers Released . | . . . . Fabnet Peak Effective % . | . . . . Robots Rewired . | . . . . Allies Hacked . | . . . . Hacks Repelled . | . . . . Allies | -11 -10 -10 -10 -------- Run | Yrd Mat Min Sub Total Allies 1 | . 1 . . Largest Group 1 | . 1 1 1 Highest-Rated Group 31 | . 31 31 31 Highest-Rated Ally 31 | . 31 31 31 Total Orders . | . . . . Ally Attacks 13 | . . 7 6 Total Damage 129 | . . 129 . Kills . | . . . . Allies Corrupted . | . . . . Allies Melted . | . . . . Intel | -11 -10 -10 -10 ------- Run | Yrd Mat Min Sub Active Infowar (turns) 1778 | 9 826 866 77 Seismic 1778 | 9 826 866 77 Robot Analysis Total . | . . . . Derelict Logs Recovered 1 | . . 1 . Drone Launches . | . . . . Drone Recoveries . | . . . . Exploration | -11 -10 -10 -10 ------------- Run | Yrd Mat Min Sub Turns Passed 1983 | 144 896 866 77 Spaces Moved 996 | 49 421 510 16 Core 4 | 4 . . . Treads 992 | 45 421 510 16 Legs . | . . . . Wheels . | . . . . Hover . | . . . . Flight . | . . . . Fastest Speed 50 | 50 160 152 152 Average Speed 155 | 151 160 152 152 Slowest Speed 160 | 160 160 160 152 Overloaded Moves . | . . . . Propulsion Burnouts . | . . . . Robots Hopped . | . . . . Potential Cave-ins 2 | . . 2 . Cave-ins Triggered . | . . . . Exploration Rate (%) 40 | 5 58 97 2 Regions Visited 3 Branch Regions 2 Pre-discovered Areas . | . . . . Known Exits Taken . | . . . . Unknown Exits Taken 3 | 1 1 1 . Scrap Searched 1 | . . 1 . Spaces Dug . | . . . . Terrain Destroyed . | . . . . Melee . | . . . . Projectile . | . . . . AOE . | . . . . Terrain Rammed . | . . . . Walls Destroyed . | . . . . Machines Disabled . | . . . . Actions | -11 -10 -10 -10 --------- Run | Yrd Mat Min Sub Total 1265 | 80 574 570 41 Wait 110 | 2 73 32 3 Move 993 | 48 420 509 16 Hop . | . . . . Pick Up 30 | 3 20 7 . Fast Attach 8 | 7 1 . . Attach 6 | . . . 6 Detach . | . . . . Swap 7 | . 4 3 . Drop 21 | . 17 4 . Fire 89 | 20 38 15 16 Melee . | . . . . Ram . | . . . . Kick . | . . . . Crush 1 | . 1 . . Escape Stasis . | . . . . Rewire . | . . . . Trap . | . . . . Miscellaneous . | . . . . Route ------- -11/Scrapyard -10/Materials (discovered 2 exits: [*Mat] / *Min) -10/Mines (discovered 3 exits: [*Mat x2] / [*Sub]) -10/Subcaves History --------- Turn | Location | Event 7 | -11/Scrapyard | Discovered new exit (range 15) 145 | -11/Scrapyard | Entered Materials 303 | -10/Materials | Build established: Mutant 625 | -10/Materials | Discovered new exit (range 5) 924 | -10/Materials | Discovered new exit (range 12) 976 | -10/Materials | Botcube activated 990 | -10/Materials | Botcube completed mutation into treaded form, armed with 2 guns. 1041 | -10/Materials | Entered Mines 1041 | -10/Mines | Accompanied by 1 ally 1060 | -10/Mines | Met a Derelict shopkeep closing up shop 1304 | -10/Mines | Assembled infested the area 1545 | -10/Mines | Discovered new exit (range 14) 1787 | -10/Mines | Discovered new exit (range 11) 1802 | -10/Mines | Discovered new exit (range 10) 1827 | -10/Mines | Joined a pair of Derelicts in attacking an 0b10 outpost 1907 | -10/Mines | Entered Subcaves 1907 | -10/Subcaves | Accompanied by 1 ally 1908 | -10/Subcaves | Approached by a straggling Scientist 1965 | -10/Subcaves | Core integrity fell below 50% 1970 | -10/Subcaves | Ambushed by angry Subdweller bent on revenge 1979 | -10/Subcaves | Core integrity fell below 20% 1984 | -10/Subcaves | Destroyed by MF-JC1(R) with Subdweller Beam Cannon Last Messages --------------- all the Subs lurking out here." 01911_ YS-4CU(c): "Hey, let me tag along and I can get us both out of this nasty situation. At least I think I can... The group I got separated from was talking about a shortcut back to the UFD." 01918_ Acquired 3 matter. 01932_ Critical hit (Meltdown: +280). 01940_ Med. Laser destroyed. 01944_ Imp. Ion Engine destroyed. 01950_ Critical hit (Meltdown: +280). 01952_ Lgt. Treads destroyed. YS-4CU(c): "I think it's somewhere northwest of here" 01962_ Assault Rifle destroyed. 01966_ Adv. Treads destroyed. 01970_ KZ-AZA(R) angrily emerges from the Twisted Machinery. 01970_ KZ-AZA(R): "OHNO!" 01976_ Lgt. Treads destroyed. Map ----- +----------------------------------------------------+ | ?????????????????????????????????????????????????? | | ?????????????????????????????????????????????????? | | ?????????????????????????????????????????????????? | | ?????????????????????????????????????????????????? | | ?????????????????????????????????????????????????? | | ?????????????????????????????????????????????????? | | ?????????????????????????????????????????????????? | | ?????????????????????????????????????????????????? | | ?????????????????????????????????????????????????? | | ?????????????????????????????????????????????????? | | ?????????????????????????????????????????????????? | | ?????????????????????????????????????????????????? | | ?????????????????????????????????????????????????? | | ?????????????????????????????????????????????????? | | ?????????????????????????????????????????????????? | | ?????????????????????????????????????????????????? | | ?????????????????????????????????????????????????? | | ?????????????????????????????##??????????????????? | | ??????????????????????????### #??????????????????? | | ?????????????????????????## #####??????????????? | | ?????????????????????????# #??????????????? | | ????????????????????????## % #??????????????? | | ?????????????????????#?##% #???????????????? | | ?????????????????????#;# ##???????????????? | | ??????????????????????# # ####????? #?????????? | | ?????????????????????## c@;# #????? ?????????? | | ?????????????????????# %R## #??? #?????????? | | ?????????????????????# ## ##? ??????????? | | ?????????????????????## # ?????????????? | | ??????????????????????##R ## "?????????????????? | | ???????????????????????#"" # ???????????????????? | | ???????????????????????#""" ##???????????????????? | | ??????????????????????#""" "#???????????????????? | | ????????????????????? " """ ??????????????????? | | ???????????????????? ""### ?????????????????? | | ???????????????????? """##??# ????????????????? | | ??????????????????? """"#????? ???????????????? | | ???????????????????""???????????"""??????????????? | | ?????????????????????????????????""??????????????? | | ?????????????????????????????????????????????????? | | ?????????????????????????????????????????????????? | | ?????????????????????????????????????????????????? | | ?????????????????????????????????????????????????? | | ?????????????????????????????????????????????????? | | ?????????????????????????????????????????????????? | | ?????????????????????????????????????????????????? | | ?????????????????????????????????????????????????? | | ?????????????????????????????????????????????????? | | ?????????????????????????????????????????????????? | | ?????????????????????????????????????????????????? | +----------------------------------------------------+ Best States ------------- Heat Dissipation 35 Energy Generation 12 Energy Capacity 265 Matter Stores 300 Matter Capacity 300 Sight Range 16 Terrain Scan Density 10 Evasion (%) 40 Recoil Reduction 2 Item Schematics ----------------- Hcp. Storage Unit | -10/Materials | Hacked Robot Schematics ------------------ None Fabricated ------------ Nothing Repaired ---------- Nothing Studied --------- None Alien Tech Used ----------------- None Achievements -------------- None Challenges ------------ None Game ------ Seed ThrowingBoreProjector Manual? 0 Play Time 00:09:24 Cumulative 309.7 hours Start 2026.01.18 @ 18:42:44 End 2026.01.18 @ 18:51:27 Sessions 1 Manual Loads 0 Difficulty Rogue Special Mode None Game No. 206 Rogue 206 Adventurer 0 Explorer 0 Win Type - Total 11 Types 8/0/1/1/0/0/0/1/0/0 Lore% 92 Gallery% 80 Achievement% 65 Wizard Run 0 Options --------- Layout 1 ASCII 0 Keyboard 0 Movement Mouse Keybinds 0 Fullscreen 2 Font 32/SmallcapsGlow Map View 50x35 Zoom Use 0% Tactical HUD 1 Map Filters NONE Filters NONE Steam 1 RUN: d8df17b0-83db-4fed-bd69-73a6cb9ead98